bitfinex/quotes_BTCUSD_20250127
["timestamp","ask_amount","ask_price","bid_price","bid_amount"]
[1737982463868,0.00501517,100170.0,100160.0,0.15048797]
[1737982464524,0.0001412,100180.0,100160.0,0.15048797]
[1737982464728,0.0001412,100180.0,100170.0,0.149745]
[1737982464931,0.0001412,100180.0,100170.0,0.686055]
[1737982465340,0.0001412,100180.0,100170.0,0.706055]
[1737982465547,0.01666667,100200.0,100190.0,0.43867771]
[1737982465754,0.01666667,100200.0,100190.0,0.706025]
[1737982466463,0.01666667,100200.0,100190.0,0.716025]
[1737982466703,0.06655147,100240.0,100230.0,0.149655]
[1737982467435,0.06645147,100240.0,100230.0,0.15028119]
[1737982467667,0.06645147,100240.0,100230.0,0.149555]
[1737982467668,0.07081204,100240.0,100230.0,0.149555]
[1737982468038,0.07237223,100240.0,100230.0,0.14970439]
[1737982468422,0.07237223,100240.0,100230.0,0.14980439]
[1737982468645,0.07237223,100240.0,100230.0,0.00014939]
[1737982468842,0.22201223,100240.0,100230.0,0.00014939]
[1737982469524,0.31935952,100240.0,100230.0,0.00014939]
[1737982470811,0.16971952,100240.0,100230.0,0.00014939]
[1737982471008,0.07237223,100240.0,100230.0,0.14980439]
[1737982471354,0.05019561,100230.0,100220.0,0.349215]
[1737982471712,0.05019561,100230.0,100220.0,0.46965916]
[1737982471908,0.05614584,100230.0,100220.0,0.14976687]
[1737982472097,0.05614584,100230.0,100220.0,9.687e-05]
[1737982472360,0.05614584,100230.0,100220.0,0.14976687]
[1737982475516,0.05614584,100230.0,100220.0,0.18007616]
[1737982476253,0.05614584,100230.0,100220.0,0.18080272]
[1737982476455,0.05614584,100230.0,100220.0,0.18007616]
[1737982476656,0.05614584,100230.0,100220.0,0.27742345]
[1737982476857,0.05614584,100230.0,100220.0,0.18007616]
[1737982478647,0.05614584,100230.0,100220.0,0.33007616]
[1737982478955,0.05614584,100230.0,100220.0,0.71638616]
[1737982479367,0.02283531,100240.0,100230.0,0.202655]
[1737982479601,0.02283531,100240.0,100230.0,0.7798319]
[1737982479804,0.02283531,100240.0,100230.0,0.74627429]
[1737982480207,3.1e-07,100240.0,100230.0,0.72627429]
[1737982480418,0.0666414,100260.0,100250.0,0.299625]
[1737982480632,0.0666414,100260.0,100250.0,0.27728158]
[1737982480797,0.0666414,100260.0,100250.0,0.17993429]
[1737982481007,0.0666414,100260.0,100250.0,0.149625]
[1737982481207,0.16398869,100260.0,100250.0,0.1806094]
[1737982481408,0.16398869,100260.0,100250.0,0.17988373]
[1737982481409,0.0666414,100260.0,100250.0,0.17988373]
[1737982481859,0.1508074,100280.0,100260.0,0.349078]
[1737982482061,0.24815469,100280.0,100260.0,0.349078]
[1737982482398,0.24815469,100280.0,100260.0,0.548559]
[1737982482551,0.44759569,100280.0,100260.0,0.548559]
[1737982482759,0.44759569,100280.0,100260.0,0.349078]
[1737982482927,0.64705469,100280.0,100260.0,0.349079]
[1737982483155,0.09907738,100280.0,100270.0,0.149596]
[1737982484117,0.00173009,100280.0,100270.0,0.149596]
[1737982485062,0.00173009,100280.0,100270.0,0.24694329]
[1737982485295,0.00173009,100280.0,100270.0,0.17978906]
[1737982485509,0.00173009,100280.0,100270.0,0.150321]
[1737982485712,0.0565762,100290.0,100280.0,0.1921]
[1737982485914,0.0208429,100300.0,100290.0,0.322566]
[1737982486112,0.0208429,100300.0,100290.0,0.45009114]
[1737982486113,9e-07,100300.0,100290.0,0.45009114]
[1737982487012,0.00478365,100300.0,100290.0,0.45009114]
[1737982487220,2e-07,100310.0,100290.0,0.45009114]
[1737982487414,2e-07,100310.0,100300.0,0.67358493]
[1737982487622,2e-07,100310.0,100300.0,0.71303885]
[1737982488236,2e-07,100310.0,100300.0,0.42707614]
[1737982488438,2e-07,100310.0,100300.0,0.24689829]
[1737982488588,2e-07,100310.0,100300.0,0.149551]
[1737982489194,2e-07,100310.0,100300.0,0.15027529]
[1737982489604,2e-07,100310.0,100300.0,0.149551]
[1737982489804,2e-07,100310.0,100300.0,0.1502754]
[1737982490612,2e-07,100310.0,100300.0,0.149551]
[1737982491285,2e-07,100310.0,100300.0,0.68658525]
[1737982491489,2e-07,100310.0,100300.0,0.56551371]
[1737982491899,2e-07,100310.0,100300.0,0.685861]
[1737982492320,2e-07,100310.0,100300.0,0.71585863]
[1737982492635,0.080859,100320.0,100310.0,0.149536]
[1737982492869,0.080859,100320.0,100310.0,0.24688329]
[1737982493062,0.080859,100320.0,100310.0,0.26988329]
[1737982493682,1e-06,100320.0,100310.0,0.44988329]
[1737982493909,1e-06,100320.0,100310.0,0.44983603]
[1737982494563,1e-06,100320.0,100310.0,0.45983603]
[1737982495114,1e-06,100320.0,100310.0,0.44983603]
[1737982495319,1e-06,100320.0,100310.0,0.51339364]
[1737982495558,0.0002015,100350.0,100340.0,0.149491]
[1737982495698,0.0002015,100350.0,100340.0,0.24683829]
[1737982496104,0.0002015,100350.0,100340.0,0.26983829]
[1737982496515,0.0002015,100350.0,100340.0,0.24683829]
[1737982496732,0.0002015,100350.0,100340.0,0.24693516]
[1737982498183,0.0002015,100350.0,100340.0,0.30349277]
[1737982498391,0.0002015,100350.0,100340.0,0.26993516]
[1737982498598,0.0002015,100350.0,100340.0,0.24693516]
[1737982500281,0.0002015,100350.0,100340.0,0.26993516]
[1737982500452,0.0002015,100350.0,100340.0,0.24693516]
[1737982500688,0.0002015,100350.0,100340.0,0.40693516]
[1737982500886,0.0002015,100350.0,100340.0,0.39693516]
[1737982501234,0.0666415,100370.0,100360.0,0.32215414]
[1737982501349,0.0666415,100370.0,100360.0,0.68546414]
[1737982501725,0.0068635,100370.0,100360.0,0.70546414]
[1737982501918,0.000597,100400.0,100360.0,0.70546414]
[1737982501919,0.000597,100400.0,100390.0,0.299417]
[1737982502070,0.4813588,100420.0,100410.0,0.149387]
[1737982502274,0.0813588,100420.0,100410.0,0.24745594]
[1737982502478,0.0813588,100420.0,100410.0,0.09734729]
[1737982502679,0.0813588,100420.0,100410.0,0.51341845]
[1737982502879,0.0813588,100420.0,100410.0,0.662697]
[1737982503103,0.0940461,100440.0,100430.0,0.179357]
[1737982503308,0.09455174,100440.0,100430.0,0.69638744]
[1737982503511,0.06033111,100440.0,100430.0,0.26970429]
[1737982503902,0.06033111,100440.0,100430.0,0.09734729]
[1737982504068,0.06033111,100440.0,100430.0,0.512667]
[1737982504316,0.06033111,100440.0,100430.0,0.39670429]
[1737982505026,0.06033111,100440.0,100430.0,0.715667]
[1737982505241,0.0695,100450.0,100440.0,0.332342]
[1737982505456,0.0001413,100460.0,100450.0,0.58529071]
[1737982505690,0.0001413,100460.0,100450.0,0.672638]
[1737982505904,0.0001413,100460.0,100450.0,0.692638]
[1737982506331,0.0001413,100460.0,100450.0,0.672638]
[1737982506546,0.0001413,100460.0,100450.0,0.24667529]
[1737982508250,0.09245907,100470.0,100460.0,0.149313]
[1737982508453,0.09245907,100470.0,100460.0,0.24666029]
[1737982509675,0.09260057,100470.0,100460.0,0.24666029]
[1737982510279,0.24189857,100470.0,100460.0,0.09734729]
[1737982510487,0.24189857,100470.0,100440.0,9.687e-05]
[1737982510488,0.09260057,100470.0,100440.0,9.687e-05]
[1737982510639,0.149328,100450.0,100440.0,9.687e-05]
[1737982511012,0.348419,100460.0,100440.0,9.687e-05]
[1737982511210,0.88798257,100470.0,100450.0,0.149328]
[1737982511441,0.88798257,100470.0,100460.0,0.149313]
[1737982511442,0.53960057,100470.0,100460.0,0.149313]
[1737982511687,0.68889857,100470.0,100450.0,0.44576229]
[1737982511897,0.49260057,100470.0,100460.0,0.24738072]
[1737982512171,0.09260057,100470.0,100460.0,0.24666029]
[1737982512567,0.09260057,100470.0,100460.0,0.41666029]
[1737982512901,0.09260057,100470.0,100460.0,0.39666029]
[1737982513125,0.09260057,100470.0,100460.0,0.44660166]
[1737982513237,0.09260057,100470.0,100460.0,0.42660166]
[1737982513662,0.09260057,100470.0,100460.0,0.39666029]
[1737982513881,0.09249797,100470.0,100460.0,0.39666029]
[1737982514872,0.09249797,100470.0,100460.0,0.42663801]
[1737982515075,0.09249797,100470.0,100460.0,0.41966029]
[1737982515307,0.09249797,100470.0,100460.0,0.44963942]
[1737982515474,6e-05,100490.0,100480.0,0.149283]
[1737982515673,6e-05,100490.0,100480.0,0.15000273]
[1737982516295,6e-05,100490.0,100480.0,0.24735002]
[1737982516491,6e-05,100490.0,100480.0,0.24663029]
[1737982516697,6e-05,100490.0,100480.0,0.14937987]
[1737982517334,6e-05,100490.0,100480.0,0.15009969]
[1737982518257,6e-05,100490.0,100480.0,0.24744698]
[1737982518461,6e-05,100490.0,100480.0,0.24672716]
[1737982518615,6e-05,100490.0,100480.0,0.24662716]
[1737982518821,0.56646,100500.0,100490.0,0.149268]
[1737982519886,0.53320602,100500.0,100490.0,0.149268]
[1737982520087,0.49340602,100500.0,100490.0,0.68329783]
[1737982520291,0.33896585,100500.0,100490.0,0.682578]
[1737982520497,0.20282332,100500.0,100490.0,0.74135051]
[1737982520694,0.20282332,100500.0,100490.0,0.705578]
[1737982521306,0.20282332,100500.0,100490.0,0.39661529]
[1737982521518,0.20282332,100500.0,100490.0,0.24661529]
[1737982521690,0.3802503,100550.0,100520.0,0.01]
[1737982521883,0.08546596,100560.0,100550.0,0.179179]
[1737982522196,2e-07,100580.0,100570.0,0.299149]
[1737982522548,1e-08,100590.0,100580.0,0.299135]
[1737982522755,0.04885221,100600.0,100590.0,0.16912]
[1737982522965,0.0149188,100620.0,100610.0,0.14909]
[1737982523213,0.0149188,100620.0,100610.0,0.51311618]
[1737982523441,9e-07,100630.0,100620.0,0.169075]
[1737982523617,0.000497,100650.0,100640.0,0.149046]
[1737982523844,0.000497,100650.0,100640.0,0.24639329]
[1737982524032,0.00100391,100650.0,100640.0,0.24639329]
[1737982524508,0.00100391,100650.0,100640.0,0.09734729]
[1737982524759,0.00100391,100650.0,100610.0,0.19877]
[1737982524966,0.00100391,100650.0,100620.0,0.44588724]
[1737982525206,0.00100391,100650.0,100630.0,0.347807]
[1737982525461,0.00100391,100650.0,100640.0,0.00071595]
[1737982525694,0.00100391,100650.0,100640.0,0.09734729]
[1737982525979,0.00100391,100650.0,100630.0,0.14906]
[1737982526141,0.0065315,100670.0,100660.0,0.172016]
[1737982526310,0.0065315,100670.0,100660.0,0.26936329]
[1737982526728,0.0065315,100670.0,100660.0,0.24636329]
[1737982526891,9e-08,100670.0,100660.0,0.581987]
[1737982527089,0.4,100700.0,100690.0,0.148972]
[1737982527339,2.0,100710.0,100700.0,0.148957]
[1737982527479,2.0,100710.0,100700.0,0.24701864]
[1737982527684,2.0,100710.0,100700.0,0.40630429]
[1737982527685,1.852705,100710.0,100700.0,0.40630429]
[1737982528060,0.4001411,100740.0,100730.0,0.178912]
[1737982528281,6.3e-07,100750.0,100740.0,0.318898]
[1737982528511,6.3e-07,100750.0,100740.0,0.40624529]
[1737982528712,0.0177855,100790.0,100780.0,0.41480171]
[1737982528919,0.0177855,100790.0,100780.0,0.532149]
[1737982529130,0.0177855,100790.0,100780.0,0.682149]
[1737982529276,0.0017152,100820.0,100800.0,0.318809]
[1737982529480,0.0017152,100820.0,100810.0,0.148794]
[1737982529718,0.0017152,100820.0,100810.0,0.10805868]
[1737982530116,0.0017152,100820.0,100810.0,0.09805868]
[1737982530117,0.00222308,100820.0,100810.0,0.09805868]
[1737982530521,0.00222308,100820.0,100810.0,0.24685268]
[1737982530903,0.00222308,100820.0,100810.0,0.24614129]
[1737982531616,0.00222308,100820.0,100810.0,0.09734729]
[1737982531861,0.15100308,100820.0,100810.0,0.09734729]
[1737982532093,0.00668747,100820.0,100810.0,0.09734729]
[1737982532288,0.40668747,100820.0,100810.0,0.24614129]
[1737982532534,4.8e-07,100820.0,100810.0,1.26251829]
[1737982532739,0.00047213,100880.0,100840.0,0.17]
[1737982532935,0.00047213,100880.0,100870.0,0.26605329]
[1737982533192,0.01084881,100900.0,100890.0,0.148676]
[1737982533410,0.01084881,100900.0,100890.0,0.2467328]
[1737982533563,0.01075922,100900.0,100890.0,0.24602329]
[1737982533736,0.01075922,100900.0,100890.0,0.39602329]
[1737982534154,0.01075922,100900.0,100890.0,0.09734729]
[1737982534357,0.15942122,100900.0,100890.0,0.09734729]
[1737982534562,0.396489,100890.0,100850.0,0.148731]
[1737982534806,0.148706,100870.0,100860.0,0.09805728]
[1737982534982,0.198288,100870.0,100840.0,0.00071026]
[1737982535210,0.148713,100870.0,100850.0,0.09734729]
[1737982535381,0.276048,100890.0,100860.0,0.00071056]
[1737982535584,0.20778072,100900.0,100870.0,0.24604729]
[1737982535758,0.25732872,100900.0,100870.0,0.09734729]
[1737982535960,0.346951,100880.0,100870.0,0.00070985]
[1737982536193,0.148725,100860.0,100820.0,0.148772]
[1737982536429,0.347057,100850.0,100830.0,0.09713359]
[1737982536634,0.36331,100850.0,100820.0,0.00071099]
[1737982536891,0.396682,100840.0,100810.0,0.00029589]
[1737982537070,0.148765,100830.0,100810.0,0.09764318]
[1737982537308,0.198355,100830.0,100810.0,0.09764318]
[1737982537517,0.14878,100820.0,100810.0,0.00029589]
[1737982537732,0.00015233,100830.0,100810.0,0.09764318]
[1737982537932,0.00015233,100830.0,100820.0,0.24683839]
[1737982538220,0.00015233,100830.0,100820.0,0.24612729]
[1737982538485,0.00015233,100830.0,100820.0,0.68209]
[1737982538695,0.4,100850.0,100840.0,0.29875]
[1737982538899,0.4,100850.0,100840.0,0.24609729]
[1737982539107,0.4,100850.0,100840.0,0.09734729]
[1737982539312,0.4,100850.0,100840.0,0.0980582]
[1737982539607,0.4,100850.0,100840.0,0.09734729]
[1737982539791,0.4,100850.0,100840.0,0.39609729]
[1737982539998,0.4,100850.0,100840.0,0.24609729]
[1737982540265,0.548735,100850.0,100840.0,0.09734729]
[1737982540552,0.4,100850.0,100840.0,0.24609729]
[1737982540818,0.4,100850.0,100840.0,0.09734729]
[1737982540819,0.385,100850.0,100840.0,0.09734729]
[1737982541326,0.385,100850.0,100840.0,0.39680822]
[1737982541595,0.385,100850.0,100840.0,0.66206]
[1737982542108,0.385,100850.0,100840.0,0.24609729]
[1737982542350,0.32558891,100860.0,100850.0,0.148735]
[1737982542585,0.32558891,100860.0,100850.0,0.09734729]
[1737982542828,0.32558891,100860.0,100850.0,0.2467931]
[1737982543081,0.32558891,100860.0,100850.0,0.39608229]
[1737982543357,0.148717,100870.0,100850.0,0.09734729]
[1737982543586,0.347031,100860.0,100830.0,0.184762]
[1737982543835,0.198295,100860.0,100840.0,0.09734729]
[1737982544087,0.148747,100850.0,100830.0,0.036]
[1737982544296,0.148754,100840.0,100830.0,0.00071114]
[1737982544508,0.14878,100820.0,100810.0,0.00029589]
[1737982544954,0.58959,100820.0,100810.0,0.00029589]
[1737982545168,0.55959,100820.0,100810.0,0.00029589]
[1737982545580,0.198393,100810.0,100780.0,0.148834]
[1737982545792,0.0475,100820.0,100790.0,0.44530861]
[1737982545989,0.394656,100820.0,100790.0,0.44529761]
[1737982546206,0.09734729,100810.0,100780.0,0.00050788]
[1737982546426,0.178824,100790.0,100780.0,0.00050788]
[1737982546631,0.178824,100790.0,100710.0,0.198576]
[1737982546632,0.01,100770.0,100710.0,0.198576]
[1737982546837,0.148942,100710.0,100700.0,0.00029526]
[1737982547049,0.279568,100730.0,100700.0,0.09764255]
[1737982547263,0.148928,100720.0,100700.0,0.44519155]
[1737982547470,0.158942,100710.0,100700.0,0.00029526]
[1737982547684,0.25628929,100710.0,100700.0,0.00029526]
[1737982547893,0.149002,100670.0,100640.0,0.198714]
[1737982548106,0.198609,100700.0,100650.0,0.24637829]
[1737982548107,0.198666,100680.0,100650.0,0.24637829]
[1737982548311,0.149006,100670.0,100640.0,0.19886333]
[1737982548521,0.34766,100680.0,100650.0,0.09806289]
[1737982548733,0.148913,100730.0,100700.0,0.148957]
[1737982548934,0.347442,100740.0,100710.0,0.24699124]
[1737982549143,0.148912,100730.0,100720.0,0.00071376]
[1737982549356,0.4,100730.0,100720.0,0.24698422]
[1737982549560,0.198413,100800.0,100770.0,0.347315]
[1737982549777,0.148824,100790.0,100780.0,0.09805958]
[1737982549972,0.347301,100780.0,100750.0,0.347367]
[1737982550174,0.19891123,100800.0,100760.0,0.10734729]
[1737982550382,0.00049623,100800.0,100780.0,0.347265]
[1737982550585,0.148831,100790.0,100770.0,0.148844]
[1737982550794,0.198455,100780.0,100750.0,0.19920667]
[1737982551021,0.198455,100780.0,100750.0,0.19851]
[1737982551228,0.347304,100780.0,100760.0,0.347349]
[1737982551438,0.347304,100780.0,100710.0,0.57383571]
[1737982551439,0.148889,100750.0,100730.0,0.347453]
[1737982551640,0.24623929,100750.0,100730.0,0.148907]
[1737982551841,0.148902,100740.0,100720.0,0.347478]
[1737982552052,0.02,100800.0,100750.0,0.148883]
[1737982552268,0.02,100800.0,100760.0,0.09805978]
[1737982552269,0.198452,100780.0,100760.0,0.09805978]
[1737982552471,0.198471,100770.0,100750.0,0.09734729]
[1737982552669,0.56176,100790.0,100770.0,0.14885]
[1737982552670,0.44462929,100790.0,100770.0,0.14885]
[1737982552873,0.49424429,100790.0,100760.0,0.39768108]
[1737982553089,0.14932823,100790.0,100770.0,0.14885]
[1737982553300,0.74775523,100790.0,100770.0,0.34801256]
[1737982553500,0.40049623,100790.0,100770.0,0.44535985]
[1737982553709,0.40049623,100790.0,100780.0,0.24618629]
[1737982553913,0.148839,100780.0,100770.0,0.09734729]
[1737982554119,0.148856,100770.0,100750.0,0.347369]
[1737982554331,0.148875,100760.0,100740.0,0.148891]
[1737982554536,0.198511,100750.0,100720.0,0.198554]
[1737982554748,0.347337,100770.0,100750.0,0.347387]
[1737982554962,0.148868,100760.0,100750.0,0.148778]
[1737982555179,0.347241,100770.0,100740.0,0.198517]
[1737982555390,0.347241,100770.0,100750.0,0.148877]
[1737982555606,0.347241,100770.0,100750.0,0.347387]
[1737982555814,0.148868,100760.0,100740.0,0.44475229]
[1737982556018,0.347361,100760.0,100740.0,0.148888]
[1737982556221,0.548886,100750.0,100730.0,0.34744]
[1737982556440,0.148904,100740.0,100720.0,0.347475]
[1737982556651,0.34747,100730.0,100710.0,0.148935]
[1737982556855,0.34747,100730.0,100710.0,0.347511]
[1737982557068,0.148913,100730.0,100710.0,0.347503]
[1737982557290,0.148913,100730.0,100710.0,0.14893]
[1737982557506,0.148927,100720.0,100700.0,0.347539]
[1737982557721,0.347485,100730.0,100710.0,0.148938]
[1737982557932,0.347485,100730.0,100690.0,0.01]
[1737982557933,0.148945,100710.0,100690.0,0.198614]
[1737982558146,0.148957,100700.0,100690.0,0.00015233]
[1737982558570,0.24754568,100700.0,100690.0,0.00015233]
[1737982558780,0.24630429,100700.0,100690.0,0.00015233]
[1737982558991,0.24630429,100700.0,100680.0,0.00029526]
[1737982558992,0.148972,100690.0,100680.0,0.00029526]
[1737982559199,0.24756097,100690.0,100680.0,0.00029526]
[1737982559407,0.24631929,100690.0,100680.0,0.00029526]
[1737982559839,0.26631929,100690.0,100680.0,0.00029526]
[1737982560048,0.24631929,100690.0,100680.0,0.00029526]
[1737982560262,0.26631929,100690.0,100680.0,0.00029526]
[1737982560669,0.148986,100680.0,100670.0,0.00047182]
[1737982560914,0.24633329,100680.0,100670.0,0.00047182]
[1737982561140,0.148986,100680.0,100670.0,0.00047182]
[1737982561349,0.24633329,100680.0,100670.0,0.00047182]
[1737982561557,0.26633329,100680.0,100670.0,0.00047182]
[1737982561791,0.149046,100640.0,100630.0,0.00071583]
[1737982562047,0.14906,100630.0,100620.0,0.01]
[1737982562267,0.149064,100630.0,100610.0,0.347914]
[1737982562532,0.198753,100630.0,100610.0,0.24644829]
[1737982562769,0.149075,100620.0,100610.0,2e-05]
[1737982563011,0.347893,100610.0,100600.0,0.00071675]
[1737982563257,0.347893,100610.0,100600.0,0.09734729]
[1737982563517,0.347893,100610.0,100590.0,0.01029568]
[1737982563518,0.149105,100600.0,100590.0,0.09764297]
[1737982563742,0.347899,100610.0,100590.0,0.34823368]
[1737982563956,0.149096,100610.0,100590.0,0.34823368]
[1737982564171,0.149096,100610.0,100600.0,0.397598]
[1737982564172,0.09734729,100610.0,100600.0,0.397598]
[1737982564387,0.09734729,100620.0,100610.0,0.347867]
[1737982564601,0.09734729,100620.0,100610.0,0.198784]
[1737982564832,0.54921054,100630.0,100610.0,0.198773]
[1737982565039,0.49749583,100630.0,100620.0,0.149075]
[1737982565247,0.09749583,100630.0,100620.0,0.149075]
[1737982565463,0.09729583,100630.0,100620.0,0.149075]
[1737982565676,0.598701,100660.0,100630.0,0.198747]
[1737982565881,0.09734729,100650.0,100640.0,0.198726]
[1737982566105,0.24637829,100650.0,100630.0,0.39797091]
[1737982566351,0.149004,100670.0,100650.0,0.198707]
[1737982566554,0.795045,100680.0,100660.0,0.149007]
[1737982566772,0.198672,100670.0,100640.0,0.19208055]
[1737982566982,0.89239229,100680.0,100660.0,0.347699]
[1737982567188,0.89239729,100680.0,100660.0,0.149015]
[1737982567435,0.49734729,100680.0,100670.0,0.149001]
[1737982567666,0.4,100680.0,100670.0,0.14971653]
[1737982567874,0.4,100680.0,100670.0,0.24706382]
[1737982568085,0.4,100680.0,100670.0,0.24634829]
[1737982568305,0.149004,100670.0,100650.0,0.347713]
[1737982568508,0.149025,100660.0,100630.0,0.01]
[1737982568727,0.34773,100660.0,100640.0,0.347758]
[1737982568927,0.149046,100640.0,100620.0,0.149074]
[1737982569138,0.29605629,100650.0,100620.0,0.149074]
[1737982569352,0.24638029,100650.0,100630.0,0.3485104]
[1737982569569,0.4,100660.0,100640.0,0.14904]
[1737982569771,0.549017,100660.0,100640.0,0.44509829]
[1737982570025,0.549016,100660.0,100640.0,0.34846691]
[1737982570250,0.149049,100640.0,100620.0,0.149065]
[1737982570464,0.09734729,100640.0,100610.0,0.149082]
[1737982570670,0.149047,100640.0,100620.0,0.347822]
[1737982570894,0.198767,100620.0,100590.0,0.20910868]
[1737982571096,0.198767,100620.0,100590.0,0.44556497]
[1737982571097,0.347884,100610.0,100590.0,0.44556497]
[1737982571329,0.149105,100600.0,100590.0,0.00029568]
[1737982571517,0.09734729,100610.0,100590.0,0.34823368]
[1737982571723,0.347822,100630.0,100610.0,0.347851]
[1737982571928,0.19876,100630.0,100610.0,0.149083]
[1737982572138,0.19878,100620.0,100610.0,0.00050691]
[1737982572345,0.347855,100620.0,100610.0,0.00050691]
[1737982572551,0.4,100630.0,100610.0,0.19999485]
[1737982572756,0.4,100630.0,100620.0,0.149075]
[1737982573167,0.4,100630.0,100620.0,0.1497916]
[1737982573377,0.4,100640.0,100630.0,0.14906]
[1737982573598,0.4,100640.0,100630.0,0.25640729]
[1737982573802,0.4,100640.0,100630.0,0.40640729]
[1737982574007,0.4,100640.0,100630.0,0.70264884]
[1737982574212,0.347645,100680.0,100660.0,0.397353]
[1737982574213,0.148988,100680.0,100660.0,0.397353]
[1737982574417,0.148988,100680.0,100640.0,0.546472]
[1737982574418,0.14902,100660.0,100640.0,0.546472]
[1737982574620,0.149019,100660.0,100640.0,0.198713]
[1737982574854,0.347655,100680.0,100660.0,0.149007]
[1737982575104,0.548982,100690.0,100670.0,0.24634829]
[1737982575291,0.4,100690.0,100680.0,0.148986]
[1737982575491,0.40014911,100690.0,100680.0,0.148986]
[1737982575825,0.40014911,100690.0,100680.0,0.14970107]
[1737982576035,0.40014911,100690.0,100680.0,0.148986]
[1737982576232,0.40014911,100690.0,100680.0,0.24633329]
[1737982576458,0.40014911,100690.0,100680.0,0.148986]
[1737982576844,0.40014911,100690.0,100680.0,0.25633329]
[1737982577180,0.4,100740.0,100730.0,0.198543]
[1737982577387,0.74758306,100740.0,100720.0,0.347475]
[1737982577580,0.148944,100710.0,100690.0,0.01]
[1737982577769,0.148929,100720.0,100700.0,0.29595329]
[1737982577971,0.148915,100730.0,100710.0,0.19859]
[1737982578171,0.4,100730.0,100720.0,0.30661439]
[1737982578376,0.4,100730.0,100720.0,0.50445829]
[1737982579214,0.00014906,100740.0,100720.0,0.50445829]
[1737982579215,0.00014906,100740.0,100730.0,0.148912]
[1737982579526,0.00014906,100740.0,100730.0,0.25697289]
[1737982579697,0.00014906,100740.0,100730.0,0.25625929]
[1737982579895,0.00014906,100740.0,100730.0,0.40625929]
[1737982580190,0.00014906,100740.0,100730.0,0.25625929]
[1737982580362,0.13798337,100750.0,100730.0,0.44480629]
[1737982580561,0.13798337,100750.0,100720.0,0.148917]
[1737982580562,0.148912,100730.0,100720.0,0.148917]
[1737982580737,0.148908,100740.0,100710.0,0.397154]
[1737982580937,0.00124069,100750.0,100710.0,0.397154]
[1737982580938,0.347406,100750.0,100730.0,0.148912]
[1737982581143,0.00049667,100760.0,100750.0,0.148883]
[1737982581340,0.00049667,100760.0,100750.0,0.25623029]
[1737982582003,0.00049667,100760.0,100750.0,0.148883]
[1737982582173,0.00049667,100760.0,100750.0,0.25623029]
[1737982582322,0.00049667,100760.0,100750.0,0.24623029]
[1737982582536,0.00049667,100760.0,100750.0,0.25623029]
[1737982582984,0.00049667,100760.0,100750.0,0.24623029]
[1737982583186,0.40049667,100760.0,100750.0,0.148883]
[1737982583407,0.74786367,100760.0,100740.0,0.148892]
[1737982583607,0.79749067,100760.0,100730.0,0.34745]
[1737982583825,0.40049667,100760.0,100740.0,0.148896]
[1737982584019,0.40049667,100760.0,100750.0,0.14959642]
[1737982584228,0.00049667,100760.0,100750.0,0.25694371]
[1737982584435,0.00049667,100760.0,100750.0,0.24623029]
[1737982584637,0.00049667,100760.0,100750.0,0.148883]
[1737982584877,0.00049667,100760.0,100750.0,0.14959613]
[1737982585038,0.00049667,100760.0,100750.0,0.148883]
[1737982585261,0.00049667,100760.0,100750.0,0.14959613]
[1737982585653,0.00049667,100760.0,100750.0,0.24694342]
[1737982585852,0.00049667,100760.0,100750.0,0.24623029]
[1737982586058,0.00049667,100760.0,100750.0,0.25623029]
[1737982586264,0.04934967,100780.0,100760.0,0.595444]
[1737982586477,0.04949861,100780.0,100770.0,0.148853]
[1737982587314,1.83579179,100750.0,100730.0,0.2328]
[1737982587569,1.60963679,100750.0,100740.0,1.34532397]
[1737982587797,1.53153679,100750.0,100740.0,1.34532397]
[1737982588002,1.52253679,100750.0,100740.0,1.11081397]
[1737982588206,1.42328179,100750.0,100740.0,1.06414197]
[1737982588409,1.42328179,100750.0,100740.0,0.90689297]
[1737982588618,1.42328179,100750.0,100740.0,0.49440729]
[1737982588960,1.42328179,100750.0,100740.0,0.90689297]
[1737982589593,1.42328179,100750.0,100740.0,0.64440729]
[1737982589793,1.42328179,100750.0,100740.0,0.49440729]
[1737982589998,1.42328179,100750.0,100740.0,0.39706]
[1737982590209,1.42328179,100750.0,100730.0,0.198538]
[1737982590210,1.49888179,100750.0,100730.0,0.198538]
[1737982590432,1.49888179,100750.0,100740.0,0.148898]
[1737982590887,1.42328179,100750.0,100740.0,0.24624529]
[1737982591499,1.42328179,100750.0,100740.0,0.148898]
[1737982591717,1.42328179,100750.0,100730.0,0.347439]
[1737982592081,1.81818279,100750.0,100730.0,0.347451]
[1737982592208,1.61967179,100750.0,100730.0,0.148907]
[1737982592412,1.61967179,100750.0,100730.0,0.198548]
[1737982592413,0.4,100740.0,100730.0,0.198548]
[1737982592819,0.548901,100740.0,100720.0,0.397111]
[1737982593186,0.4,100740.0,100720.0,0.397111]
[1737982593389,0.4,100740.0,100720.0,0.744588]
[1737982593520,0.747432,100740.0,100720.0,0.54652467]
[1737982593705,0.32680015,100730.0,100720.0,0.00049667]
[1737982593904,0.65324497,100730.0,100720.0,0.00049667]
[1737982594105,0.63324497,100730.0,100720.0,0.00049667]
[1737982594311,0.37075929,100730.0,100720.0,0.00049667]
[1737982594951,0.14895,100710.0,100690.0,0.347591]
[1737982595162,0.42041229,100730.0,100700.0,0.347561]
[1737982595404,0.72306,100730.0,100700.0,0.24630029]
[1737982595753,0.44486729,100720.0,100700.0,0.148955]
[1737982595934,0.44486729,100720.0,100700.0,0.347562]
[1737982596127,0.44486729,100720.0,100700.0,0.546169]
[1737982596331,0.64344729,100720.0,100700.0,0.347562]
[1737982596533,0.34880117,100710.0,100690.0,0.00014906]
[1737982596761,0.09734729,100710.0,100700.0,0.0002961]
[1737982596970,0.5245,100730.0,100710.0,0.198576]
[1737982597172,0.5245,100730.0,100720.0,0.148927]
[1737982597379,0.5245,100730.0,100710.0,0.397153]
[1737982597380,0.273412,100730.0,100710.0,0.546084]
[1737982597580,0.1245,100730.0,100720.0,0.148927]
[1737982597786,0.56931729,100730.0,100710.0,0.347519]
[1737982598011,0.42039729,100730.0,100710.0,0.347527]
[1737982598211,0.673425,100730.0,100720.0,0.148927]
[1737982598420,0.673425,100730.0,100710.0,0.546104]
[1737982598627,0.673425,100730.0,100710.0,0.546099]
[1737982599042,0.24627829,100720.0,100700.0,0.5464381]
[1737982599245,0.84484929,100720.0,100700.0,0.5464381]
[1737982599452,0.148942,100710.0,100700.0,0.0002961]